[Event "Titled Tuesday Blitz April 26 Late 2022"]
[White "Naroditsky, Daniel"]
[Black "Barria Zuniga, Daniel"]
[WhiteFideId "2026961"]
[BlackFideId "3400816"]
[WhiteElo "2608"]
[BlackElo "2414"]
[Result "1/2-1/2"]
[Round "02"]
[TimeControl "180+1"]
[Date "2022.04.26"]
[WhiteClock "0:00:31"]
[BlackClock "0:00:16"]

1. e4 {[%clk 0:03:00]}  e6 {[%clk 0:02:58]} 2. d4 {[%clk 0:03:00]}  d5 {[%clk 0:02:58]} 3. e5 {[%clk 0:03:01]}  c5 {[%clk 0:02:57]} 4. Nf3 {[%clk 0:03:02]}  Nc6 {[%clk 0:02:57]} 5. Bd3 {[%clk 0:03:01]}  cxd4 {[%clk 0:02:57]} 6. O-O {[%clk 0:03:01]}  Bc5 {[%clk 0:02:57]} 7. Nbd2 {[%clk 0:03:00]}  Nge7 {[%clk 0:02:56]} 8. Nb3 {[%clk 0:03:01]}  Bb6 {[%clk 0:02:56]} 9. a4 {[%clk 0:03:02]}  a6 {[%clk 0:02:52]} 10. Re1 {[%clk 0:03:00]}  Ng6 {[%clk 0:02:51]} 11. Bxg6 {[%clk 0:02:49]}  hxg6 {[%clk 0:02:50]} 12. Nbxd4 {[%clk 0:02:50]}  Nxd4 {[%clk 0:02:47]} 13. Nxd4 {[%clk 0:02:51]}  Qh4 {[%clk 0:02:46]} 14. Nf3 {[%clk 0:02:34]}  Qxf2+ {[%clk 0:02:07]} 15. Kh1 {[%clk 0:02:34]}  Bd7 {[%clk 0:01:51]} 16. Bf4 {[%clk 0:02:33]}  Rc8 {[%clk 0:01:47]} 17. c3 {[%clk 0:02:26]}  Rc4 {[%clk 0:01:42]} 18. Re2 {[%clk 0:02:26]}  Qxe2 {[%clk 0:01:27]} 19. Qxe2 {[%clk 0:02:25]}  Rxf4 {[%clk 0:01:27]} 20. b3 {[%clk 0:02:16]}  f6 {[%clk 0:01:25]} 21. Rf1 {[%clk 0:02:07]}  Rh5 {[%clk 0:01:20]} 22. Qc2 {[%clk 0:01:59]}  Rhf5 {[%clk 0:01:16]} 23. exf6 {[%clk 0:01:57]}  gxf6 {[%clk 0:01:17]} 24. h3 {[%clk 0:01:57]}  e5 {[%clk 0:01:15]} 25. Re1 {[%clk 0:01:53]}  Bc6 {[%clk 0:01:14]} 26. Nd4 {[%clk 0:01:36]}  Rf1+ {[%clk 0:00:56]} 27. Rxf1 {[%clk 0:01:33]}  Rxf1+ {[%clk 0:00:56]} 28. Kh2 {[%clk 0:01:33]}  exd4 {[%clk 0:00:57]} 29. Qe2+ {[%clk 0:01:26]}  Kf7 {[%clk 0:00:53]} 30. Qxf1 {[%clk 0:01:26]}  dxc3 {[%clk 0:00:53]} 31. Qd3 {[%clk 0:01:26]}  d4 {[%clk 0:00:51]} 32. g4 {[%clk 0:01:18]}  Bc7+ {[%clk 0:00:50]} 33. Kg1 {[%clk 0:01:18]}  Be5 {[%clk 0:00:49]} 34. Kf2 {[%clk 0:01:14]}  Bd5 {[%clk 0:00:44]} 35. Qc2 {[%clk 0:01:15]}  b5 {[%clk 0:00:38]} 36. axb5 {[%clk 0:01:13]}  axb5 {[%clk 0:00:38]} 37. h4 {[%clk 0:01:10]}  b4 {[%clk 0:00:34]} 38. h5 {[%clk 0:01:11]}  gxh5 {[%clk 0:00:30]} 39. gxh5 {[%clk 0:01:11]}  Ke6 {[%clk 0:00:30]} 40. h6 {[%clk 0:01:10]}  f5 {[%clk 0:00:31]} 41. h7 {[%clk 0:01:10]}  Be4 {[%clk 0:00:29]} 42. Qe2 {[%clk 0:01:02]}  d3 {[%clk 0:00:28]} 43. Qh5 {[%clk 0:00:56]}  d2 {[%clk 0:00:20]} 44. Qe8+ {[%clk 0:00:53]}  Kd6 {[%clk 0:00:18]} 45. Qb8+ {[%clk 0:00:52]}  Kd5 {[%clk 0:00:18]} 46. Qb5+ {[%clk 0:00:48]}  Ke6 {[%clk 0:00:17]} 47. Qe8+ {[%clk 0:00:45]}  Kd5 {[%clk 0:00:17]} 48. Qb5+ {[%clk 0:00:30]}  Ke6 {[%clk 0:00:16]} 49. Qe8+ {[%clk 0:00:31]} 1/2-1/2


[Site "https://www.chess.com"]

[Event "Titled Tuesday Blitz April 26 Late 2022"]
[White "Omariev, Maksim"]
[Black "Araujo Filho, Luiz Antonio Coel"]
[WhiteFideId "4193423"]
[BlackFideId "2130661"]
[WhiteElo "2499"]
[BlackElo "2309"]
[Result "0-1"]
[Round "02"]
[TimeControl "180+1"]
[Date "2022.04.26"]
[WhiteClock "0:00:03"]
[BlackClock "0:00:07"]

1. g4 {[%clk 0:03:00]}  d5 {[%clk 0:02:51]} 2. Bg2 {[%clk 0:03:00]}  e6 {[%clk 0:02:50]} 3. d4 {[%clk 0:02:56]}  b6 {[%clk 0:02:42]} 4. Nf3 {[%clk 0:02:49]}  Bb7 {[%clk 0:02:42]} 5. h4 {[%clk 0:02:46]}  Nf6 {[%clk 0:02:40]} 6. g5 {[%clk 0:02:46]}  Ne4 {[%clk 0:02:40]} 7. Bf4 {[%clk 0:02:43]}  Bd6 {[%clk 0:02:38]} 8. Bxd6 {[%clk 0:02:39]}  Qxd6 {[%clk 0:02:37]} 9. Nbd2 {[%clk 0:02:37]}  O-O {[%clk 0:02:33]} 10. e3 {[%clk 0:02:33]}  c5 {[%clk 0:02:31]} 11. c3 {[%clk 0:02:33]}  Rd8 {[%clk 0:02:27]} 12. Nxe4 {[%clk 0:02:22]}  dxe4 {[%clk 0:02:22]} 13. Nd2 {[%clk 0:02:22]}  cxd4 {[%clk 0:02:04]} 14. cxd4 {[%clk 0:01:25]}  e5 {[%clk 0:01:59]} 15. Nxe4 {[%clk 0:01:19]}  Qb4+ {[%clk 0:01:52]} 16. Qd2 {[%clk 0:01:07]}  Qe7 {[%clk 0:01:30]} 17. Rg1 {[%clk 0:00:22]}  exd4 {[%clk 0:00:46]} 18. Nf6+ {[%clk 0:00:20]}  Kh8 {[%clk 0:00:43]} 19. Bxb7 {[%clk 0:00:15]}  Qxb7 {[%clk 0:00:43]} 20. Ng4 {[%clk 0:00:04]}  Qe4 {[%clk 0:00:41]} 21. Qe2 {[%clk 0:00:02]}  d3 {[%clk 0:00:39]} 22. Qd2 {[%clk 0:00:03]}  Nc6 {[%clk 0:00:34]} 23. O-O-O {[%clk 0:00:03]}  Nb4 {[%clk 0:00:32]} 24. Kb1 {[%clk 0:00:04]}  a5 {[%clk 0:00:29]} 25. a3 {[%clk 0:00:04]}  Na6 {[%clk 0:00:21]} 26. h5 {[%clk 0:00:04]}  Rac8 {[%clk 0:00:20]} 27. h6 {[%clk 0:00:04]}  Rc2 {[%clk 0:00:17]} 28. hxg7+ {[%clk 0:00:05]}  Kxg7 {[%clk 0:00:16]} 29. Nf6 {[%clk 0:00:05]}  Qe6 {[%clk 0:00:11]} 30. Qe1 {[%clk 0:00:04]}  Qb3 {[%clk 0:00:08]} 31. Qc3 {[%clk 0:00:03]}  Rxc3 {[%clk 0:00:06]} 32. Nh5+ {[%clk 0:00:02]}  Kf8 {[%clk 0:00:06]} 33. Rd2 {[%clk 0:00:03]}  Rc2 {[%clk 0:00:06]} 34. Rxc2 {[%clk 0:00:04]}  Qxc2+ {[%clk 0:00:06]} 35. Ka1 {[%clk 0:00:04]}  d2 {[%clk 0:00:06]} 36. Rb1 {[%clk 0:00:02]}  d1=Q {[%clk 0:00:06]} 37. Rxd1 {[%clk 0:00:02]}  Rxd1+ {[%clk 0:00:07]} 38. Ka2 {[%clk 0:00:03]}  Rd2 {[%clk 0:00:07]} 0-1


[Site "https://www.chess.com"]

[Event "Titled Tuesday Blitz April 26 Late 2022"]
[White "Ouellet, Maili-Jade"]
[Black "Moussard, Jules"]
[WhiteFideId "2620472"]
[BlackFideId "642908"]
[WhiteElo "1899"]
[BlackElo "2589"]
[Result "0-1"]
[Round "02"]
[TimeControl "180+1"]
[Date "2022.04.26"]
[WhiteClock "0:00:08"]
[BlackClock "0:00:39"]

1. d4 {[%clk 0:03:00]}  e6 {[%clk 0:02:56]} 2. c4 {[%clk 0:03:00]}  c5 {[%clk 0:02:55]} 3. d5 {[%clk 0:02:59]}  exd5 {[%clk 0:02:55]} 4. cxd5 {[%clk 0:03:00]}  d6 {[%clk 0:02:56]} 5. Nc3 {[%clk 0:03:01]}  g6 {[%clk 0:02:56]} 6. e4 {[%clk 0:03:01]}  Bg7 {[%clk 0:02:56]} 7. f4 {[%clk 0:03:02]}  a6 {[%clk 0:02:54]} 8. a4 {[%clk 0:02:59]}  Nf6 {[%clk 0:02:54]} 9. Nf3 {[%clk 0:03:00]}  O-O {[%clk 0:02:54]} 10. Be2 {[%clk 0:03:00]}  Re8 {[%clk 0:02:54]} 11. Nd2 {[%clk 0:02:59]}  Nbd7 {[%clk 0:02:36]} 12. O-O {[%clk 0:02:59]}  Qc7 {[%clk 0:02:29]} 13. Kh1 {[%clk 0:02:57]}  c4 {[%clk 0:02:28]} 14. e5 {[%clk 0:02:52]}  dxe5 {[%clk 0:02:26]} 15. Nxc4 {[%clk 0:02:51]}  e4 {[%clk 0:01:59]} 16. f5 {[%clk 0:02:50]}  Nc5 {[%clk 0:01:35]} 17. Bf4 {[%clk 0:02:45]}  Qd8 {[%clk 0:01:34]} 18. fxg6 {[%clk 0:02:43]}  hxg6 {[%clk 0:01:35]} 19. Bg5 {[%clk 0:02:27]}  Rb8 {[%clk 0:01:09]} 20. b4 {[%clk 0:02:18]}  Nd3 {[%clk 0:01:04]} 21. Nxe4 {[%clk 0:01:35]}  Nxe4 {[%clk 0:01:05]} 22. Bxd8 {[%clk 0:01:26]}  Ndf2+ {[%clk 0:00:55]} 23. Kg1 {[%clk 0:01:16]}  Nxd1 {[%clk 0:00:55]} 24. Raxd1 {[%clk 0:01:15]}  Rxd8 {[%clk 0:00:55]} 25. a5 {[%clk 0:01:09]}  Nc3 {[%clk 0:00:53]} 26. Rd2 {[%clk 0:01:05]}  Rxd5 {[%clk 0:00:49]} 27. Rxd5 {[%clk 0:01:02]}  Nxd5 {[%clk 0:00:50]} 28. Nd6 {[%clk 0:00:46]}  Be6 {[%clk 0:00:50]} 29. b5 {[%clk 0:00:39]}  Nc3 {[%clk 0:00:44]} 30. Bf3 {[%clk 0:00:36]}  Nxb5 {[%clk 0:00:43]} 31. Nxb7 {[%clk 0:00:34]}  Nd4 {[%clk 0:00:41]} 32. Nd6 {[%clk 0:00:30]}  Nxf3+ {[%clk 0:00:41]} 33. gxf3 {[%clk 0:00:31]}  Rb2 {[%clk 0:00:38]} 34. Rd1 {[%clk 0:00:25]}  Be5 {[%clk 0:00:39]} 35. Ne4 {[%clk 0:00:22]}  Bxh2+ {[%clk 0:00:39]} 36. Kh1 {[%clk 0:00:19]}  Be5 {[%clk 0:00:39]} 37. Rc1 {[%clk 0:00:12]}  Bd5 {[%clk 0:00:38]} 38. Rc5 {[%clk 0:00:08]}  Bxe4 {[%clk 0:00:38]} 39. fxe4 {[%clk 0:00:08]}  Rb5 {[%clk 0:00:39]} 0-1


[Site "https://www.chess.com"]

[Event "Titled Tuesday Blitz April 26 Late 2022"]
[White "Pesotskiy, Mikhail"]
[Black "Kamsky, Gata"]
[WhiteFideId "34164453"]
[BlackFideId "2000024"]
[WhiteElo "2010"]
[BlackElo "2645"]
[Result "1-0"]
[Round "02"]
[TimeControl "180+1"]
[Date "2022.04.26"]
[WhiteClock "0:00:32"]
[BlackClock "0:00:21"]

1. d4 {[%clk 0:02:59]}  Nf6 {[%clk 0:02:51]} 2. c4 {[%clk 0:02:59]}  e6 {[%clk 0:02:52]} 3. Nc3 {[%clk 0:02:59]}  Bb4 {[%clk 0:02:51]} 4. Qc2 {[%clk 0:03:00]}  c5 {[%clk 0:02:51]} 5. dxc5 {[%clk 0:03:01]}  Nc6 {[%clk 0:02:48]} 6. Nf3 {[%clk 0:03:01]}  Bxc5 {[%clk 0:02:44]} 7. Bg5 {[%clk 0:02:59]}  h6 {[%clk 0:02:43]} 8. Bh4 {[%clk 0:02:47]}  b6 {[%clk 0:02:41]} 9. e3 {[%clk 0:02:47]}  Bb7 {[%clk 0:02:40]} 10. Be2 {[%clk 0:02:47]}  Be7 {[%clk 0:02:39]} 11. O-O {[%clk 0:02:47]}  Nh5 {[%clk 0:02:34]} 12. Bxe7 {[%clk 0:02:47]}  Qxe7 {[%clk 0:02:33]} 13. Rfd1 {[%clk 0:02:46]}  O-O {[%clk 0:02:29]} 14. Nb5 {[%clk 0:02:27]}  Rad8 {[%clk 0:02:21]} 15. Nd6 {[%clk 0:02:25]}  Ba8 {[%clk 0:02:21]} 16. Rd2 {[%clk 0:02:04]}  Nf6 {[%clk 0:02:12]} 17. Rad1 {[%clk 0:02:03]}  Ne8 {[%clk 0:02:08]} 18. Qc3 {[%clk 0:01:57]}  Nxd6 {[%clk 0:02:06]} 19. Rxd6 {[%clk 0:01:58]}  f5 {[%clk 0:01:47]} 20. Ne5 {[%clk 0:01:57]}  Nxe5 {[%clk 0:01:44]} 21. Qxe5 {[%clk 0:01:58]}  Qg5 {[%clk 0:01:25]} 22. Qg3 {[%clk 0:01:54]}  Qxg3 {[%clk 0:01:16]} 23. hxg3 {[%clk 0:01:55]}  Bc6 {[%clk 0:01:12]} 24. Bf3 {[%clk 0:01:54]}  Bxf3 {[%clk 0:00:49]} 25. gxf3 {[%clk 0:01:55]}  Rf7 {[%clk 0:00:49]} 26. Rxe6 {[%clk 0:01:52]}  Rc8 {[%clk 0:00:49]} 27. Red6 {[%clk 0:01:52]}  Rxc4 {[%clk 0:00:49]} 28. Rxd7 {[%clk 0:01:52]}  Rxd7 {[%clk 0:00:47]} 29. Rxd7 {[%clk 0:01:53]}  Rc2 {[%clk 0:00:47]} 30. Rxa7 {[%clk 0:01:47]}  Rxb2 {[%clk 0:00:47]} 31. Kg2 {[%clk 0:01:40]}  Kh7 {[%clk 0:00:45]} 32. e4 {[%clk 0:01:39]}  fxe4 {[%clk 0:00:44]} 33. fxe4 {[%clk 0:01:40]}  Kg6 {[%clk 0:00:44]} 34. Kf3 {[%clk 0:01:30]}  h5 {[%clk 0:00:41]} 35. Ke3 {[%clk 0:01:24]}  Kf6 {[%clk 0:00:40]} 36. Ra6 {[%clk 0:01:17]}  g5 {[%clk 0:00:39]} 37. a4 {[%clk 0:01:16]}  Rb3+ {[%clk 0:00:37]} 38. Ke2 {[%clk 0:01:16]}  Ke5 {[%clk 0:00:37]} 39. a5 {[%clk 0:01:15]}  bxa5 {[%clk 0:00:35]} 40. Rxa5+ {[%clk 0:01:15]}  Kxe4 {[%clk 0:00:35]} 41. Rxg5 {[%clk 0:01:15]}  Rb2+ {[%clk 0:00:35]} 42. Kf1 {[%clk 0:01:14]}  Kf3 {[%clk 0:00:35]} 43. Rf5+ {[%clk 0:01:14]}  Kg4 {[%clk 0:00:35]} 44. Rc5 {[%clk 0:01:09]}  Kf3 {[%clk 0:00:34]} 45. Rc3+ {[%clk 0:01:05]}  Kg4 {[%clk 0:00:34]} 46. Kg2 {[%clk 0:01:05]}  Rb5 {[%clk 0:00:34]} 47. Rc4+ {[%clk 0:01:04]}  Kg5 {[%clk 0:00:34]} 48. Kh3 {[%clk 0:01:03]}  Rb1 {[%clk 0:00:33]} 49. Rc5+ {[%clk 0:01:01]}  Kh6 {[%clk 0:00:32]} 50. Kg2 {[%clk 0:00:55]}  Rb7 {[%clk 0:00:31]} 51. Rf5 {[%clk 0:00:53]}  Rg7 {[%clk 0:00:31]} 52. Kf3 {[%clk 0:00:51]}  Kg6 {[%clk 0:00:29]} 53. Re5 {[%clk 0:00:48]}  Rf7+ {[%clk 0:00:29]} 54. Ke3 {[%clk 0:00:48]}  Kh6 {[%clk 0:00:27]} 55. f3 {[%clk 0:00:45]}  Rg7 {[%clk 0:00:27]} 56. Kf4 {[%clk 0:00:45]}  Rf7+ {[%clk 0:00:27]} 57. Rf5 {[%clk 0:00:45]}  Rg7 {[%clk 0:00:27]} 58. Rf6+ {[%clk 0:00:44]}  Kh7 {[%clk 0:00:28]} 59. Rf5 {[%clk 0:00:38]}  Kh6 {[%clk 0:00:28]} 60. Ra5 {[%clk 0:00:38]}  Rg8 {[%clk 0:00:26]} 61. Ra1 {[%clk 0:00:34]}  Rg7 {[%clk 0:00:26]} 62. Rh1 {[%clk 0:00:33]}  Rf7+ {[%clk 0:00:25]} 63. Ke3 {[%clk 0:00:34]}  Re7+ {[%clk 0:00:26]} 64. Kf2 {[%clk 0:00:34]}  Kg6 {[%clk 0:00:26]} 65. Ra1 {[%clk 0:00:31]}  Kh6 {[%clk 0:00:25]} 66. Ra4 {[%clk 0:00:31]}  Rg7 {[%clk 0:00:24]} 67. f4 {[%clk 0:00:31]}  Rg8 {[%clk 0:00:22]} 68. Kf3 {[%clk 0:00:31]}  Rg7 {[%clk 0:00:21]} 69. Ra6+ {[%clk 0:00:31]}  Kh7 {[%clk 0:00:21]} 70. Ra5 {[%clk 0:00:32]}  Rg8 {[%clk 0:00:21]} 71. Rxh5+ {[%clk 0:00:32]} 1-0


[Site "https://www.chess.com"]

[Event "Titled Tuesday Blitz April 26 Late 2022"]
[White "Piesik, Piotr"]
[Black "Mayaud, Raphael"]
[WhiteFideId "1136194"]
[BlackFideId "627151"]
[WhiteElo "2190"]
[BlackElo "2191"]
[Result "1-0"]
[Round "02"]
[TimeControl "180+1"]
[Date "2022.04.26"]
[WhiteClock "0:00:48"]
[BlackClock "0:00:12"]

1. Nf3 {[%clk 0:03:00]}  d5 {[%clk 0:02:48]} 2. g3 {[%clk 0:02:57]}  c6 {[%clk 0:02:48]} 3. Bg2 {[%clk 0:02:58]}  Nf6 {[%clk 0:02:48]} 4. O-O {[%clk 0:02:58]}  Bf5 {[%clk 0:02:49]} 5. d3 {[%clk 0:02:58]}  e6 {[%clk 0:02:48]} 6. Nbd2 {[%clk 0:02:59]}  h6 {[%clk 0:02:47]} 7. Qe1 {[%clk 0:02:59]}  Bh7 {[%clk 0:02:47]} 8. e4 {[%clk 0:03:00]}  Be7 {[%clk 0:02:47]} 9. Qe2 {[%clk 0:03:00]}  O-O {[%clk 0:02:48]} 10. b3 {[%clk 0:03:00]}  Na6 {[%clk 0:02:46]} 11. Bb2 {[%clk 0:02:56]}  Nb4 {[%clk 0:02:38]} 12. Ne1 {[%clk 0:02:55]}  dxe4 {[%clk 0:02:37]} 13. dxe4 {[%clk 0:02:54]}  Qc7 {[%clk 0:02:32]} 14. a4 {[%clk 0:02:48]}  a5 {[%clk 0:02:30]} 15. Nc4 {[%clk 0:02:43]}  Rfd8 {[%clk 0:02:28]} 16. Be5 {[%clk 0:02:41]}  Qd7 {[%clk 0:02:00]} 17. Nb6 {[%clk 0:02:38]}  Qe8 {[%clk 0:01:52]} 18. Nxa8 {[%clk 0:02:36]}  Rxa8 {[%clk 0:01:53]} 19. Nd3 {[%clk 0:02:30]}  Rd8 {[%clk 0:01:50]} 20. Nxb4 {[%clk 0:02:29]}  Bxb4 {[%clk 0:01:50]} 21. Rad1 {[%clk 0:02:29]}  Qe7 {[%clk 0:01:46]} 22. Rxd8+ {[%clk 0:02:26]}  Qxd8 {[%clk 0:01:46]} 23. Rd1 {[%clk 0:02:26]}  Qb6 {[%clk 0:01:46]} 24. Kh1 {[%clk 0:02:16]}  Bg6 {[%clk 0:01:46]} 25. f3 {[%clk 0:02:15]}  Bc5 {[%clk 0:01:45]} 26. Qd3 {[%clk 0:02:12]}  Kh7 {[%clk 0:01:31]} 27. Bd4 {[%clk 0:02:11]}  h5 {[%clk 0:01:15]} 28. h4 {[%clk 0:02:08]}  Bxd4 {[%clk 0:01:12]} 29. Qxd4 {[%clk 0:02:09]}  Qc7 {[%clk 0:01:12]} 30. Kh2 {[%clk 0:02:08]}  b5 {[%clk 0:01:08]} 31. Qd6 {[%clk 0:02:03]}  Qb6 {[%clk 0:01:07]} 32. axb5 {[%clk 0:02:03]}  Qxb5 {[%clk 0:01:07]} 33. Qd3 {[%clk 0:02:00]}  Qb6 {[%clk 0:01:07]} 34. Qd4 {[%clk 0:01:59]}  Qb5 {[%clk 0:01:06]} 35. Bf1 {[%clk 0:01:58]}  Qb8 {[%clk 0:01:05]} 36. Qc5 {[%clk 0:01:48]}  e5 {[%clk 0:00:48]} 37. Qxa5 {[%clk 0:01:42]}  Qc8 {[%clk 0:00:25]} 38. Bh3 {[%clk 0:01:40]}  Qf8 {[%clk 0:00:21]} 39. Qxe5 {[%clk 0:01:39]}  Qb4 {[%clk 0:00:20]} 40. Qd4 {[%clk 0:01:37]}  Qb5 {[%clk 0:00:20]} 41. Qd3 {[%clk 0:01:32]}  Qb6 {[%clk 0:00:20]} 42. Rd2 {[%clk 0:01:32]}  Ng8 {[%clk 0:00:18]} 43. Bf5 {[%clk 0:01:31]}  Ne7 {[%clk 0:00:18]} 44. Bxg6+ {[%clk 0:01:30]}  Nxg6 {[%clk 0:00:19]} 45. e5 {[%clk 0:01:27]}  Qc5 {[%clk 0:00:15]} 46. Qf5 {[%clk 0:01:25]}  Qe3 {[%clk 0:00:14]} 47. Qxh5+ {[%clk 0:01:23]}  Kg8 {[%clk 0:00:15]} 48. Rd8+ {[%clk 0:01:22]}  Nf8 {[%clk 0:00:15]} 49. Kh3 {[%clk 0:00:48]}  Qxf3 {[%clk 0:00:12]} 50. Qxf3 {[%clk 0:00:48]} 1-0


[Site "https://www.chess.com"]

[Event "Titled Tuesday Blitz April 26 Late 2022"]
[White "Remolar Gallen, Jose"]
[Black "Wartiovaara, Oliver"]
[WhiteFideId "2215187"]
[BlackFideId "513024"]
[WhiteElo "2205"]
[BlackElo "1971"]
[Result "0-1"]
[Round "02"]
[TimeControl "180+1"]
[Date "2022.04.26"]
[WhiteClock "0:00:04"]
[BlackClock "0:01:05"]

1. d4 {[%clk 0:03:00]}  Nf6 {[%clk 0:02:59]} 2. Nf3 {[%clk 0:02:59]}  g6 {[%clk 0:02:59]} 3. Nbd2 {[%clk 0:02:54]}  d5 {[%clk 0:02:57]} 4. b3 {[%clk 0:02:52]}  Bg7 {[%clk 0:02:57]} 5. Bb2 {[%clk 0:02:49]}  O-O {[%clk 0:02:58]} 6. e3 {[%clk 0:02:45]}  Nbd7 {[%clk 0:02:54]} 7. Be2 {[%clk 0:02:41]}  c5 {[%clk 0:02:54]} 8. O-O {[%clk 0:02:39]}  b6 {[%clk 0:02:51]} 9. Ne5 {[%clk 0:02:35]}  Bb7 {[%clk 0:02:50]} 10. f4 {[%clk 0:02:34]}  Rc8 {[%clk 0:02:47]} 11. Rc1 {[%clk 0:02:14]}  e6 {[%clk 0:02:42]} 12. Qe1 {[%clk 0:02:11]}  Ne4 {[%clk 0:02:34]} 13. Nxe4 {[%clk 0:01:57]}  dxe4 {[%clk 0:02:35]} 14. Rd1 {[%clk 0:01:53]}  cxd4 {[%clk 0:02:19]} 15. Bxd4 {[%clk 0:01:52]}  Nxe5 {[%clk 0:02:10]} 16. Bxe5 {[%clk 0:01:48]}  Qe8 {[%clk 0:01:45]} 17. c4 {[%clk 0:01:31]}  f6 {[%clk 0:01:36]} 18. Bd6 {[%clk 0:01:28]}  Rf7 {[%clk 0:01:37]} 19. c5 {[%clk 0:01:15]}  bxc5 {[%clk 0:01:32]} 20. Bc4 {[%clk 0:01:15]}  Rd7 {[%clk 0:01:22]} 21. Qe2 {[%clk 0:00:20]}  Bd5 {[%clk 0:01:10]} 22. Bxd5 {[%clk 0:00:09]}  exd5 {[%clk 0:01:11]} 23. Rxd5 {[%clk 0:00:09]}  Qe6 {[%clk 0:01:10]} 24. Rfd1 {[%clk 0:00:09]}  Rcd8 {[%clk 0:01:09]} 25. Qa6 {[%clk 0:00:06]}  Bf8 {[%clk 0:01:05]} 26. Bxf8 {[%clk 0:00:05]}  Qxa6 {[%clk 0:01:04]} 27. Rxd7 {[%clk 0:00:05]}  Rxd7 {[%clk 0:01:05]} 28. Rxd7 {[%clk 0:00:04]}  Kxf8 {[%clk 0:01:05]} 0-1


[Site "https://www.chess.com"]

[Event "Titled Tuesday Blitz April 26 Late 2022"]
[White "Rengifo Blancas, Renzo Jhonathan"]
[Black "Lashkin, Jegor"]
[WhiteFideId "3807185"]
[BlackFideId "13907808"]
[WhiteElo "2058"]
[BlackElo "2368"]
[Result "0-1"]
[Round "02"]
[TimeControl "180+1"]
[Date "2022.04.26"]
[WhiteClock "0:00:02"]
[BlackClock "0:01:17"]

1. e4 {[%clk 0:03:00]}  g6 {[%clk 0:02:59]} 2. d4 {[%clk 0:02:57]}  Bg7 {[%clk 0:03:00]} 3. Nc3 {[%clk 0:02:52]}  d6 {[%clk 0:03:00]} 4. f4 {[%clk 0:02:51]}  a6 {[%clk 0:02:59]} 5. Nf3 {[%clk 0:02:52]}  b5 {[%clk 0:02:59]} 6. Bd3 {[%clk 0:02:50]}  Nf6 {[%clk 0:02:59]} 7. e5 {[%clk 0:02:49]}  Nfd7 {[%clk 0:02:59]} 8. Qe2 {[%clk 0:02:48]}  Nb6 {[%clk 0:02:58]} 9. Be3 {[%clk 0:02:42]}  Bb7 {[%clk 0:02:54]} 10. O-O-O {[%clk 0:02:42]}  b4 {[%clk 0:02:51]} 11. Ne4 {[%clk 0:02:41]}  Bd5 {[%clk 0:02:44]} 12. Kb1 {[%clk 0:02:40]}  a5 {[%clk 0:02:33]} 13. c4 {[%clk 0:02:31]}  Nxc4 {[%clk 0:02:31]} 14. Nf6+ {[%clk 0:02:26]}  exf6 {[%clk 0:02:30]} 15. Bxc4 {[%clk 0:02:20]}  Bxc4 {[%clk 0:02:29]} 16. Qxc4 {[%clk 0:02:19]}  O-O {[%clk 0:02:28]} 17. Rc1 {[%clk 0:02:03]}  fxe5 {[%clk 0:02:26]} 18. Qxc7 {[%clk 0:02:02]}  Qxc7 {[%clk 0:01:50]} 19. Rxc7 {[%clk 0:02:02]}  e4 {[%clk 0:01:40]} 20. Nd2 {[%clk 0:01:48]}  d5 {[%clk 0:01:39]} 21. Rhc1 {[%clk 0:01:47]}  Na6 {[%clk 0:01:37]} 22. R7c6 {[%clk 0:01:29]}  a4 {[%clk 0:01:32]} 23. Rd6 {[%clk 0:01:21]}  Rfd8 {[%clk 0:01:30]} 24. Rcc6 {[%clk 0:01:20]}  Rxd6 {[%clk 0:01:30]} 25. Rxd6 {[%clk 0:01:19]}  Nc7 {[%clk 0:01:30]} 26. Rb6 {[%clk 0:00:38]}  Bf8 {[%clk 0:01:28]} 27. Rc6 {[%clk 0:00:16]}  Ne6 {[%clk 0:01:28]} 28. g4 {[%clk 0:00:10]}  Bg7 {[%clk 0:01:26]} 29. Rd6 {[%clk 0:00:07]}  Rd8 {[%clk 0:01:17]} 30. Rxd8+ {[%clk 0:00:06]}  Nxd8 {[%clk 0:01:18]} 31. f5 {[%clk 0:00:05]}  Nc6 {[%clk 0:01:17]} 32. b3 {[%clk 0:00:02]}  a3 {[%clk 0:01:17]} 0-1


[Site "https://www.chess.com"]

[Event "Titled Tuesday Blitz April 26 Late 2022"]
[White "Richter, Nils"]
[Black "Romero Ruscalleda, Josep"]
[WhiteFideId "12990809"]
[BlackFideId "2231859"]
[WhiteElo "2243"]
[BlackElo "2314"]
[Result "1-0"]
[Round "02"]
[TimeControl "180+1"]
[Date "2022.04.26"]
[WhiteClock "0:01:07"]
[BlackClock "0:00:06"]

1. d4 {[%clk 0:03:00]}  g6 {[%clk 0:03:00]} 2. g3 {[%clk 0:02:59]}  Bg7 {[%clk 0:03:01]} 3. Bg2 {[%clk 0:03:00]}  d6 {[%clk 0:03:01]} 4. b3 {[%clk 0:02:58]}  Nd7 {[%clk 0:02:59]} 5. Bb2 {[%clk 0:02:59]}  c5 {[%clk 0:02:59]} 6. c4 {[%clk 0:02:57]}  cxd4 {[%clk 0:02:56]} 7. Bxd4 {[%clk 0:02:56]}  Ngf6 {[%clk 0:02:56]} 8. Nf3 {[%clk 0:02:56]}  O-O {[%clk 0:02:56]} 9. O-O {[%clk 0:02:56]}  Qa5 {[%clk 0:02:50]} 10. Qd2 {[%clk 0:02:50]}  Qh5 {[%clk 0:02:49]} 11. Nc3 {[%clk 0:02:47]}  Nc5 {[%clk 0:02:42]} 12. Qg5 {[%clk 0:02:40]}  Bg4 {[%clk 0:01:59]} 13. Qxh5 {[%clk 0:02:39]}  Bxh5 {[%clk 0:01:55]} 14. Rac1 {[%clk 0:02:30]}  Nfe4 {[%clk 0:01:48]} 15. Bxg7 {[%clk 0:02:30]}  Kxg7 {[%clk 0:01:48]} 16. Nxe4 {[%clk 0:02:29]}  Nxe4 {[%clk 0:01:48]} 17. h3 {[%clk 0:02:23]}  Bxf3 {[%clk 0:01:43]} 18. Bxf3 {[%clk 0:02:24]}  Nd2 {[%clk 0:01:42]} 19. Rfe1 {[%clk 0:02:21]}  Nxf3+ {[%clk 0:01:42]} 20. exf3 {[%clk 0:02:22]}  Rfe8 {[%clk 0:01:41]} 21. f4 {[%clk 0:02:22]}  Rac8 {[%clk 0:01:38]} 22. Rcd1 {[%clk 0:02:22]}  Rc5 {[%clk 0:01:36]} 23. Kg2 {[%clk 0:02:22]}  Kf8 {[%clk 0:01:33]} 24. a4 {[%clk 0:02:21]}  Rec8 {[%clk 0:01:30]} 25. Re3 {[%clk 0:02:16]}  a6 {[%clk 0:01:29]} 26. Rde1 {[%clk 0:02:12]}  R8c7 {[%clk 0:01:30]} 27. Re4 {[%clk 0:02:05]}  b5 {[%clk 0:01:28]} 28. cxb5 {[%clk 0:02:04]}  axb5 {[%clk 0:01:28]} 29. b4 {[%clk 0:02:03]}  Rc2 {[%clk 0:01:07]} 30. a5 {[%clk 0:01:59]}  Rb2 {[%clk 0:01:01]} 31. R1e2 {[%clk 0:01:59]}  Rcc2 {[%clk 0:00:57]} 32. Rxc2 {[%clk 0:01:56]}  Rxc2 {[%clk 0:00:57]} 33. Re3 {[%clk 0:01:55]}  Ra2 {[%clk 0:00:55]} 34. Rc3 {[%clk 0:01:51]}  Ra4 {[%clk 0:00:48]} 35. Rb3 {[%clk 0:01:47]}  Ke8 {[%clk 0:00:47]} 36. Rb2 {[%clk 0:01:42]}  Kd7 {[%clk 0:00:47]} 37. Kf3 {[%clk 0:01:42]}  e6 {[%clk 0:00:46]} 38. Ke4 {[%clk 0:01:40]}  Ra3 {[%clk 0:00:42]} 39. h4 {[%clk 0:01:35]}  d5+ {[%clk 0:00:30]} 40. Ke5 {[%clk 0:01:32]}  Ke7 {[%clk 0:00:30]} 41. Rc2 {[%clk 0:01:31]}  f6+ {[%clk 0:00:29]} 42. Kd4 {[%clk 0:01:27]}  Kd6 {[%clk 0:00:29]} 43. Rc3 {[%clk 0:01:25]}  e5+ {[%clk 0:00:20]} 44. fxe5+ {[%clk 0:01:23]}  fxe5+ {[%clk 0:00:19]} 45. Kd3 {[%clk 0:01:24]}  Ra2 {[%clk 0:00:13]} 46. Rc5 {[%clk 0:01:16]}  Rxf2 {[%clk 0:00:11]} 47. Rxb5 {[%clk 0:01:17]}  Rf3+ {[%clk 0:00:11]} 48. Kc2 {[%clk 0:01:16]}  Rxg3 {[%clk 0:00:11]} 49. Kb2 {[%clk 0:01:10]}  d4 {[%clk 0:00:11]} 50. a6 {[%clk 0:01:10]}  Rg2+ {[%clk 0:00:09]} 51. Kb3 {[%clk 0:01:10]}  Rg1 {[%clk 0:00:09]} 52. a7 {[%clk 0:01:09]}  Rb1+ {[%clk 0:00:08]} 53. Kc2 {[%clk 0:01:08]}  Ra1 {[%clk 0:00:07]} 54. Ra5 {[%clk 0:01:08]}  d3+ {[%clk 0:00:05]} 55. Kxd3 {[%clk 0:01:07]}  Rxa5 {[%clk 0:00:06]} 56. bxa5 {[%clk 0:01:07]} 1-0


[Site "https://www.chess.com"]